Cogmind - Beta 13 @@@ ROGUE MODE // 2024.06.26 @ 01:22:48 Player: Berg Result: Destroyed by Y-54 Guardian with Flak Gun Performance ------------- Evolutions (3) 1500 Regions Visited (6) 1200 Robots Destroyed (66) 330 Value Destroyed (1931) 1931 Prototype IDs (3) 60 Alien Tech Used (0) 0 Bonus (0) 0 TOTAL SCORE: 5021 Bonus ------- None Cogmind --------- Core Integrity 0/700 Matter 0/300 Energy 99/100 System Corruption 19% Temperature Cool (6) Movement Core (50) Location -7/Factory Parts ------- > --- POWER (2) -------- (None) > --- PROPULSION (3) --- (None) > --- UTILITY (6) ------ Experimental System Shield > --- WEAPON (2) ------- (None) > --- INVENTORY (5) ---- Improved Deuterium Engine Light Treads Compact Wheel Terrain Scan Processor Remote Datajack Peak State ------------ > --- POWER ------------ Improved Ion Engine Heavy Ion Engine > --- PROPULSION ------- Light Treads Advanced Treads Compact Wheel > --- UTILITY ---------- Huge Storage Unit Improved Sensor Array Improved Signal Interpreter Core Shielding Long-range Tractor Beam > --- WEAPON ----------- Gauss Cannon Gauss Cannon > --- INVENTORY -------- Light Nuclear Core Improved Deuterium Engine Improved Deuterium Engine Light Treads Compact Wheel Compact Wheel Improved Signal Interpreter Terrain Scan Processor Hardened Medium Armor Plating Gauss Rifle Gauss Cannon Rocket Launcher Improved Grenade Launcher Improved Datajack Remote Datajack Mining Laser [Rating: 33] Favorites ----------- Power Heavy Ion Engine Engine Heavy Ion Engine Power Core Light Nuclear Core Propulsion Wheel Treads Advanced Treads Wheel Wheel Utility Huge Storage Unit Device Improved Sensor Array Storage Huge Storage Unit Processor Signal Interpreter Hackware Experimental System Shield Protection Hardened Light Armor Plating Weapon Assault Rifle Energy Gun Small Laser Energy Cannon Beam Cannon Ballistic Gun Assault Rifle Ballistic Cannon Gauss Cannon Build | -11 -10 -9 -8 -7 -7 -7 ------- Run | Yrd Mat Mat Mat Fac Was Fac Slots Evolved 6 | . . 2 2 2 . . Power 1 | . . . 1 . . . Propulsion 1 | . . . . 1 . . Utility 4 | . . 2 1 1 . . Weapon . | . . . . . . . Parts Attached 61 | 6 8 8 11 27 1 . Power 10 | 1 1 2 2 4 . . Engine 9 | 1 1 2 2 3 . . Core 1 | . . . . 1 . . Reactor . | . . . . . . . Propulsion 12 | 2 1 2 1 6 . . Treads 2 | . . . . 2 . . Leg . | . . . . . . . Wheel 10 | 2 1 2 1 4 . . Hover . | . . . . . . . Flight . | . . . . . . . Utility 18 | 1 3 1 5 7 1 . Device 4 | . 1 . . 3 . . Storage 3 | 1 1 . 1 . . . Processor 2 | . 1 . . 1 . . Hackware 1 | . . . . . 1 . Protection 8 | . . 1 4 3 . . Artifact . | . . . . . . . Weapon 21 | 2 3 3 3 10 . . Energy Gun 1 | 1 . . . . . . Energy Cannon 1 | . 1 . . . . . Ballistic Gun 15 | 1 2 3 3 6 . . Ballistic Cannon 4 | . . . . 4 . . Launcher . | . . . . . . . Special Weapon . | . . . . . . . Impact Weapon . | . . . . . . . Slashing Weapon . | . . . . . . . Piercing Weapon . | . . . . . . . Special Melee Weapon . | . . . . . . . Unidentified Prototypes 3 | . . 2 . . 1 . Parts Lost 30 | . 2 3 5 20 . . Power 5 | . . 1 . 4 . . Propulsion 10 | . 1 2 1 6 . . Utility 8 | . . . 3 5 . . Weapon 7 | . 1 . 1 5 . . Highest Loss Streak 5 | . 1 1 3 5 . . To Critical Strikes 1 | . . . . 1 . . Average Slot Usage (%) 79 | . 98 84 83 77 . 7 Engine 11 | . 14 11 14 9 . . Core 1 | . . . . 2 . . Treads 2 | . . . . 5 . . Wheel 15 | . 27 20 16 10 . . Device 5 | . 12 . . 7 . . Storage 8 | . 14 11 9 6 . . Processor 6 | . 1 11 9 6 . . Protection 9 | . . 9 17 10 . . Energy Cannon 1 | . 5 . . . . . Ballistic Gun 13 | . 21 22 16 6 . . Ballistic Cannon 2 | . . . . 7 . . Naked Turns 67 | . . . . 8 59 . Heaviest Build 122 | 10 90 96 122 115 . . Greatest Support 42 | 26 26 26 20 42 3 3 Greatest Overweight (x) 11 | 3 5 4 10 11 . . Average Overweight (x) 3 | . 2 3 5 5 . . Largest Inventory Capacity 25 | 8 25 25 25 25 5 5 Average Capacity 23 | 7 22 25 25 24 5 5 Most Carried 24 | 4 16 19 24 22 5 5 Average Carried 15 | 2 11 14 19 17 5 5 Final Capacity 25 | 8 25 25 25 5 5 5 Final Carried 21 | 4 13 16 21 5 5 5 Class Distribution -------------------- 57% | Scavenger-Mutant 42% | Mutant Dominant Class ---------------- Mutant | -10/Materials Mutant | -9/Materials Scavenger-Mutant | -8/Materials Scavenger-Mutant | -7/Factory Mutant | -7/Waste Mutant | -7/Factory Resources | -11 -10 -9 -8 -7 -7 -7 ----------- Run | Yrd Mat Mat Mat Fac Was Fac Matter Collected 1753 | 210 253 265 423 602 . . Remotely 227 | . 121 . . 106 . . Salvage Created 2325 | . 461 361 736 767 . . Parts 150 | . 33 32 45 40 . . Haulers Intercepted . | . . . . . . . Recyclers Shooed 3 | . 1 . . 2 . . Parts Field Recycled . | . . . . . . . Retrieved Matter . | . . . . . . . Parts Self-Destructed . | . . . . . . . Prevented . | . . . . . . . Kills | -11 -10 -9 -8 -7 -7 -7 ------- Run | Yrd Mat Mat Mat Fac Was Fac Combat Hostiles Destroyed 49 | . 9 10 16 14 . . Guns 39 | . 4 10 16 9 . . Cannons 10 | . 5 . . 5 . . Classes Destroyed 12 | . 5 1 2 4 . . Worker 11 | . 4 . 4 3 . . Builder 1 | . . . . 1 . . Recycler 3 | . 1 . . 2 . . Operator 1 | . 1 . . . . . Watcher 1 | . . . . 1 . . Swarmer 11 | . 3 4 4 . . . Grunt 19 | . 6 3 6 4 . . Brawler 1 | . . . . 1 . . Duelist 5 | . . . 1 4 . . Sentry 10 | . . 3 4 3 . . Hunter 1 | . . . 1 . . . Programmer 2 | . . . . 2 . . Best Kill Streak 6 | . 6 6 5 4 . . Combat Bots Only 6 | . 3 6 5 3 . . Max Kills in Single Turn 1 | . 1 1 1 1 . . Gunslinging . | . . . . . . . Exploded . | . . . . . . . Melee . | . . . . . . . Uniques/NPCs Destroyed . | . . . . . . . Combat | -11 -10 -9 -8 -7 -7 -7 -------- Run | Yrd Mat Mat Mat Fac Was Fac Hostile Shots Fired 445 | . 43 54 76 250 1 21 Missed 131 | . 9 18 16 73 . 15 Damage Taken 4739 | . 401 410 808 3035 44 41 Core 978 | . 93 102 83 615 44 41 Absorbed by Shields . | . . . . . . . Redirected to Shielding 52 | . . . . 52 . . Ignored by Resistances 6 | . . . 6 . . . Core Remaining (%) 80 | 100 62 74 84 . . . Volleys Fired 222 | . 48 30 60 84 . . Largest 2 | . 2 2 2 2 . . Hottest 96 | . 80 43 43 96 . . Shots Fired 408 | . 92 60 111 145 . . Gun 322 | . 66 60 111 85 . . Cannon 86 | . 26 . . 60 . . Launcher . | . . . . . . . Special . | . . . . . . . Kinetic 378 | . 62 60 111 145 . . Thermal 30 | . 30 . . . . . Explosive . | . . . . . . . Electromagnetic . | . . . . . . . Robot Hit Streak 15 | . 12 12 15 9 . . Robot Miss Streak 6 | . 3 4 3 6 . . Penetration Max . | . . . . . . . Secondary Targets 2 | . . 1 1 . . . Max Gunslinging Chain 1 | . . 1 1 . . . Shots Hit Robots 283 | . 63 36 80 104 . . Core Hits 140 | . 25 13 39 63 . . Critical Kills 2 | . 2 . . . . . Critical Parts Destroyed 3 | . 1 . 2 . . . Critical Strikes 8 | . 3 . 2 3 . . Destroy 5 | . 3 . 2 . . . Blast 3 | . . . . 3 . . Melee Attacks . | . . . . . . . Impact . | . . . . . . . Slashing . | . . . . . . . Piercing . | . . . . . . . Sneak Attacks . | . . . . . . . Combat Hostiles . | . . . . . . . Follow-up Attacks . | . . . . . . . Damage Inflicted 4673 | . 786 470 1105 2312 . . Guns 3132 | . 473 470 1105 1084 . . Cannons 1506 | . 278 . . 1228 . . Explosions . | . . . . . . . Melee . | . . . . . . . Ramming 35 | . 35 . . . . . Kinetic 4350 | . 463 470 1105 2312 . . Thermal 288 | . 288 . . . . . Explosive . | . . . . . . . Electromagnetic . | . . . . . . . Impact . | . . . . . . . Slashing . | . . . . . . . Piercing . | . . . . . . . Highest Corruption 19 | . 7 . . 17 17 19 Average Corruption 12 | . 3 . . 15 17 17 Corruption Purged . | . . . . . . . Corruption Blocked . | . . . . . . . Effects 63 | . 7 . . 44 5 7 Message Errors 12 | . 1 . . 10 . 1 Matter Fused 14 | . 3 . . 9 1 1 Heat Flow Errors 6 | . . . . 4 . 2 Energy Discharges 16 | . 2 . . 13 . 1 Data Loss (minor) 6 | . 1 . . 2 2 1 Data Loss (major) 2 | . . . . 2 . . Misfires 1 | . . . . 1 . . Alerts 1 | . . . . 1 . . Misdirections 3 | . . . . . 2 1 Weapon Failures 2 | . . . . 2 . . Overload Shots . | . . . . . . . Overflow Damage 83 | . . . . 83 . . Projectiles 83 | . . . . 83 . . Explosions . | . . . . . . . Melee . | . . . . . . . Knockbacks 13 | . . . . 13 . . Impact . | . . . . . . . Kinetic 12 | . . . . 12 . . Secondary 1 | . . . . 1 . . Self-Inflicted Damage 17 | . 17 . . . . . Shots . | . . . . . . . Rammed 1 | . 1 . . . . . Targets Rammed 1 | . 1 . . . . . Kicked . | . . . . . . . Crushed . | . . . . . . . Highest Temperature 367 | . 367 3 243 241 . 229 Average Temperature 79 | . 115 2 69 66 . 118 Received Heat Transfer 1176 | . 177 105 369 519 . 6 Effects 1 | . 1 . . . . . Interference 1 | . 1 . . . . . Siege Activations . | . . . . . . . Robots Corrupted . | . . . . . . . Combat Hostiles . | . . . . . . . Parts Fried . | . . . . . . . Impact Corruptions . | . . . . . . . Robots Melted . | . . . . . . . Combat Hostiles . | . . . . . . . Parts Melted 1 | . 1 . . . . . Heat Transferred 617 | . 617 . . . . . Parts Sabotaged . | . . . . . . . Parts Stolen . | . . . . . . . Parts Stripped . | . . . . . . . Power Chain Reactions . | . . . . . . . Alert | -11 -10 -9 -8 -7 -7 -7 ------- Run | Yrd Mat Mat Mat Fac Was Fac Peak Influence 294 | . 241 275 294 281 43 135 Initial 120 | . . 51 78 120 28 30 Average 121 | . 103 171 160 100 32 63 Maximum Alert Level 1 | . 1 1 1 1 . . Low Security (%) 80 | 100 91 48 68 90 100 100 Level 1 19 | . 8 51 31 9 . . Level 2 . | . . . . . . . Level 3 . | . . . . . . . Level 4 . | . . . . . . . Level 5 . | . . . . . . . High Security . | . . . . . . . Max Security . | . . . . . . . Squads Dispatched 14 | . 3 1 2 8 . . Investigation 5 | . . 1 2 2 . . Extermination 2 | . . . . 2 . . Reinforcement 3 | . 3 . . . . . Assault . | . . . . . . . Garrison 4 | . . . . 4 . . Intercept . | . . . . . . . Searches Triggered . | . . . . . . . Construction Impeded . | . . . . . . . Haulers Reinforced . | . . . . . . . Active Scanning Responses . | . . . . . . . Cargo Convoy Interrupts 1 | . . . . 1 . . Stealth | -11 -10 -9 -8 -7 -7 -7 --------- Run | Yrd Mat Mat Mat Fac Was Fac Distress Signals 7 | . . 2 3 . . 2 Communications Jammed . | . . . . . . . Distress Signals . | . . . . . . . Times Spotted 95 | . 17 14 29 23 6 6 Peak Tracking Total 8 | . 4 8 5 5 6 6 Tactical Retreats 5 | . 2 1 . 2 . . Traps | -11 -10 -9 -8 -7 -7 -7 ------- Run | Yrd Mat Mat Mat Fac Was Fac Traps Triggered 7 | . 5 . . 1 . 1 Indirectly . | . . . . . . . Trap Hack Attempts . | . . . . . . . Triggered . | . . . . . . . Disarmed . | . . . . . . . Reprogrammed . | . . . . . . . Reused . | . . . . . . . Traps Extracted . | . . . . . . . Installed . | . . . . . . . Triggered 3 | . . . . 3 . . Machines | -11 -10 -9 -8 -7 -7 -7 ---------- Run | Yrd Mat Mat Mat Fac Was Fac Machines Disabled 1 | . . . . 1 . . Max in Single Turn 1 | . . . . 1 . . Machines Repaired . | . . . . . . . Machines Dismantled . | . . . . . . . Machines Sabotaged . | . . . . . . . Overloaded Fab Kills . | . . . . . . . Hacking | -11 -10 -9 -8 -7 -7 -7 --------- Run | Yrd Mat Mat Mat Fac Was Fac Machines Accessed 17 | . 2 3 9 3 . . Terminals 14 | . 1 3 7 3 . . Fabricators . | . . . . . . . Repair Stations . | . . . . . . . Recycling Units 2 | . 1 . 1 . . . Scanalyzers 1 | . . . 1 . . . Garrison Access . | . . . . . . . Total Hacks 58 | . 5 8 32 13 . . Successful 30 | . 2 3 19 6 . . Failed 28 | . 3 5 13 7 . . Catastrophic 5 | . . . 4 1 . . Database Lockouts . | . . . . . . . Manual 50 | . 5 8 24 13 . . Terminals 51 | . 3 8 27 13 . . Fabricators . | . . . . . . . Repair Stations . | . . . . . . . Recycling Units 3 | . 2 . 1 . . . Scanalyzers 4 | . . . 4 . . . Garrison Access . | . . . . . . . Terminal Hacks 13 | . . 1 8 4 . . Part Schematic 1 | . . . . 1 . . Robot Analysis 5 | . . 1 4 . . . Branch Access Points 1 | . . . 1 . . . Terminal Index 2 | . . . 1 1 . . Fabricator Index 1 | . . . . 1 . . Alert Level 3 | . . . 2 1 . . Fabricator Hacks . | . . . . . . . Repair Station Hacks . | . . . . . . . Recycling Unit Hacks . | . . . . . . . Scanalyzer 4 | . . . 4 . . . Insert Component 2 | . . . 2 . . . Analyze 2 | . . . 2 . . . Garrison Access Hacks . | . . . . . . . Unauthorized Hacks 13 | . 2 2 7 2 . . Terminals 11 | . 1 2 6 2 . . Track 2 | . . . 2 . . . Botnet 9 | . 1 2 4 2 . . Fabricators . | . . . . . . . Repair Stations . | . . . . . . . Recycling Units 2 | . 1 . 1 . . . Reject 2 | . 1 . 1 . . . Scanalyzers . | . . . . . . . Garrison Access . | . . . . . . . Data Cores Recovered . | . . . . . . . Used . | . . . . . . . Hacking Detections 15 | . 1 3 8 3 . . Full Trace Events 4 | . . 1 2 1 . . Feedback Events . | . . . . . . . Feedback Blocked . | . . . . . . . Robot Schematics Acquired . | . . . . . . . Robots Built . | . . . . . . . Authchips . | . . . . . . . Time . | . . . . . . . Total Robot Build Rating . | . . . . . . . Part Schematics Acquired 1 | . . . 1 . . . Parts Built . | . . . . . . . Authchips . | . . . . . . . Time . | . . . . . . . Total Part Build Rating . | . . . . . . . Parts Repaired . | . . . . . . . Time . | . . . . . . . Parts Recycled . | . . . . . . . Recycled Matter . | . . . . . . . Retrieved Matter . | . . . . . . . Retrieved Components . | . . . . . . . Parts Scanalyzed 2 | . . . 2 . . . Part Schematics Acquired 1 | . . . 1 . . . Parts Damaged . | . . . . . . . Bothacking | -11 -10 -9 -8 -7 -7 -7 ------------ Run | Yrd Mat Mat Mat Fac Was Fac Used RIF Installer . | . . . . . . . Robots Hacked . | . . . . . . . Non-combat . | . . . . . . . Combat . | . . . . . . . Robot Hacks Applied . | . . . . . . . Relay Couplers Released . | . . . . . . . Fabnet Peak Effective % . | . . . . . . . Robots Rewired . | . . . . . . . Allies Hacked . | . . . . . . . Hacks Repelled . | . . . . . . . Allies | -11 -10 -9 -8 -7 -7 -7 -------- Run | Yrd Mat Mat Mat Fac Was Fac Total Allies . | . . . . . . . Largest Group . | . . . . . . . Highest-Rated Group . | . . . . . . . Highest-Rated Ally . | . . . . . . . Total Orders . | . . . . . . . Ally Attacks . | . . . . . . . Total Damage . | . . . . . . . Kills . | . . . . . . . Allies Corrupted . | . . . . . . . Allies Melted . | . . . . . . . Intel | -11 -10 -9 -8 -7 -7 -7 ------- Run | Yrd Mat Mat Mat Fac Was Fac Robot Analysis Total 5 | . . 1 4 . . . Derelict Logs Recovered . | . . . . . . . Drone Launches . | . . . . . . . Drone Recoveries . | . . . . . . . Exploration | -11 -10 -9 -8 -7 -7 -7 ------------- Run | Yrd Mat Mat Mat Fac Was Fac Turns Passed 4362 | 59 791 600 1071 1592 60 189 Spaces Moved 2328 | 46 408 317 459 665 96 337 Core 458 | 9 . . . 16 96 337 Treads 70 | . . . . 70 . . Legs . | . . . . . . . Wheels 1800 | 37 408 317 459 579 . . Hover . | . . . . . . . Flight . | . . . . . . . Fastest Speed 50 | 50 90 135 140 50 50 50 Average Speed 138 | 97 129 139 162 187 50 50 Slowest Speed 545 | 200 175 140 230 545 50 50 Overloaded Moves . | . . . . . . . Propulsion Burnouts . | . . . . . . . Robots Hopped . | . . . . . . . Cave-ins Triggered . | . . . . . . . Exploration Rate (%) 33 | 4 54 35 41 16 71 12 Regions Visited 6 Branch Regions . Pre-discovered Areas . | . . . . . . . Known Exits Taken 3 | . 1 1 1 . . . Unknown Exits Taken 1 | 1 . . . . . . Scrap Searched . | . . . . . . . Spaces Dug . | . . . . . . . Terrain Destroyed 23 | . . . . 23 . . Melee . | . . . . . . . Projectile 23 | . . . . 23 . . AOE . | . . . . . . . Terrain Rammed . | . . . . . . . Walls Destroyed . | . . . . . . . Machines Disabled . | . . . . . . . Actions | -11 -10 -9 -8 -7 -7 -7 --------- Run | Yrd Mat Mat Mat Fac Was Fac Total 3056 | 56 588 419 671 858 107 357 Wait 359 | 1 103 37 124 63 11 20 Move 2323 | 45 407 316 458 665 95 337 Hop . | . . . . . . . Pick Up 51 | 4 12 12 10 13 . . Fast Attach 36 | 6 4 5 7 13 1 . Attach 22 | . 2 4 2 14 . . Detach 11 | . 3 5 2 1 . . Swap 4 | . 2 . 2 . . . Drop 27 | . 6 10 6 5 . . Fire 222 | . 48 30 60 84 . . Melee . | . . . . . . . Ram 1 | . 1 . . . . . Kick . | . . . . . . . Crush . | . . . . . . . Escape Stasis . | . . . . . . . Rewire . | . . . . . . . Trap . | . . . . . . . Miscellaneous . | . . . . . . . Route ------- -11/Scrapyard -10/Materials -9/Materials -8/Materials -7/Factory -7/Waste -7/Factory History --------- Turn | Location | Event 21 | -11/Scrapyard | Discovered new exit (range 16) 60 | -11/Scrapyard | Entered Materials 273 | -10/Materials | Discovered new exit (range 4) 306 | -10/Materials | Build established: Mutant 844 | -10/Materials | Identified exit to Materials 851 | -10/Materials | Entered another Materials area 851 | -9/Materials | Evolved 2 slots: Utility x2 1378 | -9/Materials | Discovered new exit (range 16) 1448 | -9/Materials | Identified exit to Materials 1451 | -9/Materials | Entered another Materials area 1451 | -8/Materials | Evolved 2 slots: Power x1, Utility x1 1633 | -8/Materials | Build established: Scavenger-Mutant 1813 | -8/Materials | Lost 3 parts (1n1u1w) 2406 | -8/Materials | Discovered new exit (range 14) 2515 | -8/Materials | Identified exit to Factory 2522 | -8/Materials | Entered Factory 2522 | -7/Factory | Evolved 2 slots: Propulsion x1, Utility x1 2694 | -7/Factory | Lost 4 parts (1p1n2w) 2733 | -7/Factory | Garrison activated, responded to threat 3150 | -7/Factory | Garrison activated, responded to threat 3179 | -7/Factory | System corruption reached 10% 3209 | -7/Factory | Lost 5 parts (1p2n1u1w) 3454 | -7/Factory | Lost 4 parts (1p1n2u) 3697 | -7/Factory | Cargo convoy interrupted 4046 | -7/Factory | Core integrity fell below 50% 4106 | -7/Factory | Released all parts (8) 4109 | -7/Factory | Core integrity fell below 20% 4114 | -7/Factory | Sucked down chute 4114 | -7/Factory | Entered Waste 4117 | -7/Waste | Spotted C-40 Crusher 4118 | -7/Waste | Spotted C-40 Crusher 4127 | -7/Waste | Spotted C-40 Crusher 4136 | -7/Waste | Lost 5 parts (1p1n2u1w) 4141 | -7/Waste | Spotted C-40 Crusher 4146 | -7/Waste | Spotted C-40 Crusher 4154 | -7/Waste | Spotted C-40 Crusher 4167 | -7/Waste | Discovered new exit (range 13) 4173 | -7/Waste | Found Prototype Hackware 4173 | -7/Waste | Identified Exp. System Shield 4174 | -7/Waste | Entered Factory 4346 | -7/Factory | Build established: Mutant 4363 | -7/Factory | Destroyed by Y-54 Guardian with Flak Gun Last Messages --------------- 04167_ EXIT=FOUND 04172_ System corrupted: Component data lost. 04173_ Acquired Prototype Hackware. 04173_ Identified Exp. System Shield. LOCATION=UNKNOWN GOAL=ESCAPE 04205_ System corrupted: Heat flow error (+263). 04221_ ALERT: All DSF locations entering lockdown mode. 04246_ System corrupted: Component data lost. 04262_ System corrupted: Matter fused (-1). 04307_ K-01 Serf cleans the Neutrino Reactor. 04309_ System corrupted: Energy discharge (-31). 04332_ System corrupted: Heat flow error (+227). 04339_ Triggered Shock Trap. 04339_ The floor emits a surge of raw power. 04339_ System corrupted (+2). 04347_ O-16 Technician sends out distress signal. 04347_ O-16 Technician: "IFF HANDSHAKE FAILED. SECURING TERMINAL." 04351_ W-25 Informer sends out distress signal. 04359_ QE 2J&